fUSD/lending_fUSD_20250108
["ID","MTS","AMOUNT","RATE_DAILY","PERIOD"]
[348118622,1736333447642,-500.0,9.995e-05,2]
[348118625,1736333447651,-500.0,9.995e-05,2]
[348118626,1736333447661,-500.0,9.995e-05,2]
[348118628,1736333447670,-500.0,9.995e-05,2]
[348118630,1736333447680,-536.14516394,9.995e-05,2]
[348118632,1736333447689,-500.0,9.995e-05,2]
[348118634,1736333447698,-500.0,9.995e-05,2]
[348118636,1736333447708,-500.0,9.995e-05,2]
[348118639,1736333447718,-500.0,9.995e-05,2]
[348118641,1736333447727,-500.0,9.995e-05,2]
[348118643,1736333447736,-570.42,9.995e-05,2]
[348118644,1736333447747,-500.0,9.995e-05,2]
[348118647,1736333447756,-500.0,9.995e-05,2]
[348118649,1736333447766,-500.0,9.995e-05,2]
[348118651,1736333447775,-500.0,9.995e-05,2]
[348118652,1736333447785,-500.0,9.995e-05,2]
[348118654,1736333447794,-500.0,9.995e-05,2]
[348118657,1736333447804,-500.0,9.995e-05,2]
[348118659,1736333447813,-500.0,9.995e-05,2]
[348118660,1736333447822,-500.0,9.995e-05,2]
[348118663,1736333447832,-500.0,9.995e-05,2]
[348118664,1736333447841,-500.0,9.995e-05,2]
[348118667,1736333447851,-500.0,9.995e-05,2]
[348118668,1736333447861,-500.0,9.995e-05,2]
[348118670,1736333447870,-500.0,9.995e-05,2]
[348118673,1736333447879,-500.0,9.995e-05,2]
[348118675,1736333447890,-500.0,9.995e-05,2]
[348118676,1736333447899,-500.0,9.995e-05,2]
[348118678,1736333447909,-502.28783497,9.995e-05,2]
[348118681,1736333447919,-500.0,9.995e-05,2]
[348118682,1736333447928,-500.0,9.995e-05,2]
[348118684,1736333447937,-500.0,9.995e-05,2]
[348118687,1736333447946,-500.0,9.995e-05,2]
[348118688,1736333447956,-692.94,9.995e-05,2]
[348118691,1736333447965,-500.0,9.995e-05,2]
[348118692,1736333447975,-663.61,9.995e-05,2]
[348118695,1736333447984,-500.0,9.995e-05,2]
[348118696,1736333447994,-500.0,9.995e-05,2]
[348118699,1736333448003,-500.0,9.995e-05,2]
[348118701,1736333448013,-594.72,9.995e-05,2]
[348118703,1736333448023,-500.0,9.995e-05,2]
[348118705,1736333448032,-500.0,9.995e-05,2]
[348118706,1736333448041,-500.0,9.995e-05,2]
[348118708,1736333448051,-500.0,9.995e-05,2]
[348118710,1736333448060,-500.0,9.995e-05,2]
[348118713,1736333448071,-500.0,9.995e-05,2]
[348118714,1736333448082,-500.0,9.995e-05,2]
[348118716,1736333448092,-2516.12,9.997e-05,2]
[348118719,1736333448102,-500.0,9.997e-05,2]
[348118721,1736333448111,-1115.95,9.997e-05,2]
[348118723,1736333448122,-581.98,9.997e-05,2]
[348118725,1736333448131,-500.0,9.997e-05,2]
[348118727,1736333448141,-770.25,9.997e-05,2]
[348118729,1736333448151,-643.15,9.997e-05,2]
[348118731,1736333448161,-11537.82,9.997e-05,2]
[348118733,1736333448171,-500.0,9.997e-05,2]
[348118735,1736333448180,-679.27,9.997e-05,2]
[348118736,1736333448189,-500.0,9.997e-05,2]
[348118738,1736333448198,-1830.5,9.997e-05,2]
[348118741,1736333448208,-500.0,9.997e-05,2]
[348118742,1736333448217,-500.0,9.997e-05,2]
[348118745,1736333448226,-1080.59,9.997e-05,2]
[348118747,1736333448236,-843.32,9.997e-05,2]
[348118749,1736333448245,-956.24,9.997e-05,2]
[348118751,1736333448254,-2538.29,9.997e-05,2]
[348118752,1736333448264,-2521.07,9.997e-05,2]
[348118754,1736333448273,-4566.25,9.997e-05,2]
[348118756,1736333448283,-955.86,9.997e-05,2]
[348118758,1736333448292,-1599.49,9.997e-05,2]
[348118760,1736333448301,-500.0,9.997e-05,2]
[348118762,1736333448310,-889.54,9.997e-05,2]
[348118764,1736333448319,-500.0,9.997e-05,2]
[348118766,1736333448329,-554.47,9.997e-05,2]
[348118768,1736333448338,-500.0,9.997e-05,2]
[348118770,1736333448348,-500.0,9.997e-05,2]
[348118772,1736333448357,-512.44,9.997e-05,2]
[348118774,1736333448367,-2199.94,9.997e-05,2]
[348118777,1736333448377,-500.0,9.997e-05,2]
[348118779,1736333448386,-1927.73,9.997e-05,2]
[348118781,1736333448396,-518.48,9.997e-05,2]
[348118783,1736333448406,-1052.25,9.997e-05,2]
[348118784,1736333448416,-1017.74,9.997e-05,2]
[348118787,1736333448426,-592.2317041,9.997e-05,2]
[348118788,1736333448435,-999.98,9.997e-05,2]
[348118790,1736333448445,-1334.09,9.997e-05,2]
[348118792,1736333448455,-500.0,9.997e-05,2]
[348118794,1736333448464,-500.0,9.997e-05,2]
[348118796,1736333448474,-516.14,9.997e-05,2]
[348118799,1736333448483,-1000.0,9.997e-05,2]
[348118801,1736333448492,-11537.82,9.998e-05,2]
[348118802,1736333448502,-11537.82,9.998e-05,2]
[348118804,1736333448511,-2009.58,9.998e-05,2]
[348118806,1736333448520,-1400.84,9.998e-05,2]
[348118808,1736333448530,-1537.53,9.999e-05,2]
[348118810,1736333448540,-861.78,9.999e-05,2]
[348118812,1736333448550,-1818.052178,9.999e-05,2]
[348118814,1736333448560,-1818.052178,9.999e-05,2]
[348118816,1736333448569,-3099.61,9.999e-05,2]
[348118818,1736333448579,-1249.099617,9.999e-05,2]
[348118820,1736333448588,-1249.099617,9.999e-05,2]
[348118822,1736333448598,-159.043305,9.999e-05,2]
[348118824,1736333448607,-500.0,9.999e-05,2]
[348118826,1736333448616,-156.301036,9.999e-05,2]
[348118828,1736333448626,-500.0,9.999e-05,2]
[348118830,1736333448637,-500.0,9.999e-05,2]
[348118832,1736333448646,-500.0,9.999e-05,2]
[348118834,1736333448655,-11537.82,9.999e-05,2]
[348118836,1736333448664,-11537.82,9.999e-05,2]
[348118838,1736333448674,-11537.82,9.999e-05,2]
[348118840,1736333448683,-11537.82,9.999e-05,2]
[348118841,1736333448692,-11537.82,9.999e-05,2]
[348118843,1736333448702,-11537.82,9.999e-05,2]
[348118845,1736333448711,-5468.96688275,9.999e-05,4]
[348118847,1736333448721,-11537.82,9.999e-05,2]
[348118849,1736333448731,-11537.82,9.999e-05,2]
[348118852,1736333448741,-2388.59,9.999e-05,2]
[348118854,1736333448750,-841.01,9.999e-05,2]
[348118856,1736333448760,-500.0,9.999e-05,2]
[348118858,1736333448770,-500.0,9.999e-05,2]
[348118860,1736333448779,-500.0,9.999e-05,2]
[348118861,1736333448788,-776.74,9.999e-05,2]
[348118863,1736333448798,-1273.07,9.999e-05,2]
[348118865,1736333448807,-1220.03,9.999e-05,2]
[348118867,1736333448816,-1256.23,9.999e-05,2]
[348118869,1736333448825,-10000.00099999,9.999e-05,4]
[348118871,1736333448835,-802.01,9.999e-05,2]
[348118873,1736333448844,-2153.36,9.999e-05,2]
[348118875,1736333448854,-1034.12,9.999e-05,2]
[348118877,1736333448863,-3395.68,9.999e-05,2]
[348118879,1736333448872,-2810.15,9.999e-05,2]
[348118881,1736333448882,-500.0,9.999e-05,2]
[348118883,1736333448892,-1323.0,9.999e-05,2]
[348118885,1736333448901,-1111.0,0.0001,2]
[348118888,1736333448909,-251848.22986826,0.0001,2]
[348118986,1736333449911,-26106.69857301,0.0001,2]
[348118999,1736333450030,-982.1194004,0.0001,2]
[348119134,1736334632233,-181.32,7.269e-05,2]
[348119135,1736334632243,-744.56,8.219e-05,2]
[348119136,1736334632254,-36.8917,8.701e-05,2]
[348119137,1736334632267,-1021.1083,8.701e-05,2]
[348119138,1736334632276,-250.0,8.936e-05,2]
[348119139,1736334632285,-935.71,8.942e-05,2]
[348119140,1736334632295,-250.0,8.972e-05,2]
[348119141,1736334632304,-1000.0,9.065e-05,2]
[348119142,1736334632313,-261.27,9.071e-05,2]
[348119143,1736334632322,-123.8317,9.083e-05,2]
[348119144,1736334632387,-30.6083,9.083e-05,2]
[348119145,1736334632396,-1058.0,9.159e-05,2]
[348119146,1736334632405,-156.99830592,9.444e-05,2]
[348119147,1736334632415,-150.0,9.444e-05,2]
[348119148,1736334632424,-150.0,9.444e-05,2]
[348119149,1736334632433,-154.639,9.5e-05,2]
[348119150,1736334632442,-1058.0,9.641e-05,2]
[348119151,1736334632451,-300.0,9.972e-05,2]
[348119152,1736334632460,-714.17,9.973e-05,14]
[348119153,1736334632470,-500.0,9.973e-05,2]
[348119154,1736334632479,-200.66947074,9.98e-05,2]
[348119156,1736334632488,-263.49416839,9.983e-05,2]
[348119157,1736334632498,-500.0,9.993e-05,2]
[348119159,1736334632507,-500.0,9.993e-05,2]
[348119162,1736334632517,-500.0,9.993e-05,2]
[348119163,1736334632526,-500.0,9.993e-05,2]
[348119165,1736334632535,-500.0,9.993e-05,2]
[348119167,1736334632544,-500.0,9.993e-05,2]
[348119169,1736334632554,-500.0,9.993e-05,2]
[348119171,1736334632564,-500.0,9.993e-05,2]
[348119173,1736334632574,-500.0,9.993e-05,2]
[348119175,1736334632583,-500.0,9.993e-05,2]
[348119177,1736334632592,-526.36742151,9.993e-05,2]
[348119179,1736334632602,-500.0,9.993e-05,2]
[348119181,1736334632611,-500.0,9.993e-05,2]
[348119183,1736334632620,-500.0,9.993e-05,2]
[348119185,1736334632629,-500.0,9.993e-05,2]
[348119187,1736334632639,-500.0,9.993e-05,2]
[348119189,1736334632648,-500.0,9.993e-05,2]
[348119191,1736334632659,-661.65,9.993e-05,2]
[348119193,1736334632668,-500.0,9.993e-05,2]
[348119195,1736334632677,-500.0,9.993e-05,2]
[348119197,1736334632686,-500.0,9.993e-05,2]
[348119199,1736334632695,-500.0,9.993e-05,2]
[348119201,1736334632704,-500.0,9.993e-05,2]
[348119203,1736334632714,-500.0,9.993e-05,2]
[348119205,1736334632723,-500.0,9.993e-05,2]
[348119207,1736334632732,-500.0,9.993e-05,2]
[348119209,1736334632741,-500.0,9.993e-05,2]
[348119211,1736334632751,-500.0,9.993e-05,2]
[348119213,1736334632760,-500.0,9.993e-05,2]
[348119215,1736334632769,-500.0,9.993e-05,2]
[348119217,1736334632779,-500.0,9.993e-05,2]
[348119219,1736334632787,-500.0,9.993e-05,2]
[348119221,1736334632797,-500.0,9.993e-05,2]
[348119223,1736334632806,-500.0,9.993e-05,2]
[348119225,1736334632815,-570.42,9.993e-05,2]
[348119227,1736334632824,-500.0,9.993e-05,2]
[348119229,1736334632833,-500.0,9.993e-05,2]
[348119231,1736334632842,-500.0,9.993e-05,2]
[348119233,1736334632851,-500.0,9.993e-05,2]
[348119235,1736334632861,-500.0,9.993e-05,2]
[348119237,1736334632870,-500.0,9.993e-05,2]
[348119239,1736334632879,-500.0,9.993e-05,2]
[348119241,1736334632888,-500.0,9.993e-05,2]
[348119243,1736334632898,-500.0,9.993e-05,2]
[348119245,1736334632908,-500.0,9.993e-05,2]
[348119247,1736334632917,-500.0,9.993e-05,2]
[348119250,1736334633147,-692.94,9.993e-05,2]
[348119251,1736334633158,-500.0,9.993e-05,2]
[348119252,1736334633168,-663.61,9.993e-05,2]
[348119253,1736334633178,-500.0,9.993e-05,2]
[348119254,1736334633188,-613.21,9.993e-05,2]
[348119255,1736334633198,-500.0,9.993e-05,2]
[348119256,1736334633208,-500.0,9.993e-05,2]
[348119257,1736334633218,-500.0,9.993e-05,2]
[348119258,1736334633228,-500.0,9.993e-05,2]
[348119259,1736334633238,-500.0,9.993e-05,2]
[348119260,1736334633248,-500.0,9.993e-05,2]
[348119261,1736334633260,-1115.95,9.993e-05,2]
[348119262,1736334633270,-500.0,9.993e-05,2]
[348119263,1736334633280,-581.98,9.993e-05,2]
[348119264,1736334633290,-770.25,9.993e-05,2]
[348119265,1736334633300,-1267.88,9.993e-05,2]
[348119266,1736334633309,-500.0,9.994e-05,2]
[348119267,1736334633319,-500.0,9.994e-05,2]
[348119268,1736334633330,-500.0,9.994e-05,2]
[348119269,1736334633340,-521.55009347,9.994e-05,2]
[348119270,1736334633349,-500.0,9.994e-05,2]
[348119271,1736334633359,-500.0,9.994e-05,2]
[348119272,1736334633368,-500.0,9.994e-05,2]
[348119273,1736334633379,-503.27162676,9.994e-05,2]
[348119274,1736334633389,-500.0,9.994e-05,2]
[348119275,1736334633399,-500.0,9.994e-05,2]
[348119276,1736334633409,-500.0,9.994e-05,2]
[348119277,1736334633419,-502.27842645,9.994e-05,2]
[348119278,1736334633429,-500.0,9.994e-05,2]
[348119279,1736334633439,-500.0,9.994e-05,2]
[348119280,1736334633449,-500.0,9.994e-05,2]
[348119281,1736334633458,-500.0,9.994e-05,2]
[348119282,1736334633468,-500.0,9.994e-05,2]
[348119283,1736334633477,-500.0,9.994e-05,2]
[348119284,1736334633486,-500.0,9.994e-05,2]
[348119285,1736334633496,-500.0,9.994e-05,2]
[348119286,1736334633505,-500.0,9.994e-05,2]
[348119287,1736334633515,-500.0,9.994e-05,2]
[348119288,1736334633524,-500.0,9.994e-05,2]
[348119289,1736334633535,-500.0,9.994e-05,2]
[348119290,1736334633545,-500.0,9.994e-05,2]
[348119291,1736334633554,-500.0,9.994e-05,2]
[348119292,1736334633564,-500.0,9.994e-05,2]
[348119293,1736334633573,-500.0,9.994e-05,2]
[348119294,1736334633583,-500.83983256,9.994e-05,2]
[348119295,1736334633592,-500.0,9.994e-05,2]
[348119296,1736334633602,-500.0,9.994e-05,2]
[348119297,1736334633612,-500.0,9.994e-05,2]
[348119298,1736334633622,-500.0,9.994e-05,2]
[348119299,1736334633632,-500.0,9.994e-05,2]
[348119300,1736334633641,-500.0,9.994e-05,2]
[348119301,1736334633653,-500.0,9.994e-05,2]
[348119302,1736334633669,-500.0,9.994e-05,2]
[348119303,1736334633678,-536.14516394,9.994e-05,2]
[348119304,1736334633688,-500.0,9.994e-05,2]
[348119305,1736334633699,-500.0,9.994e-05,2]
[348119306,1736334633709,-500.0,9.994e-05,2]
[348119307,1736334633719,-500.0,9.994e-05,2]
[348119308,1736334633729,-500.0,9.994e-05,2]
[348119309,1736334633739,-500.0,9.994e-05,2]
[348119310,1736334633748,-500.0,9.994e-05,2]
[348119311,1736334633758,-500.0,9.994e-05,2]
[348119312,1736334633767,-500.0,9.994e-05,2]
[348119313,1736334633777,-500.0,9.994e-05,2]
[348119314,1736334633788,-500.0,9.994e-05,2]
[348119315,1736334633797,-500.0,9.994e-05,2]
[348119316,1736334633807,-502.28783497,9.994e-05,2]
[348119317,1736334633817,-500.0,9.994e-05,2]
[348119318,1736334633827,-500.0,9.994e-05,2]
[348119319,1736334633836,-500.0,9.994e-05,2]
[348119320,1736334633846,-500.0,9.994e-05,2]
[348119321,1736334633856,-956.24,9.997e-05,2]
[348119322,1736334633866,-2538.29,9.997e-05,2]
[348119323,1736334633876,-4566.25,9.997e-05,2]
[348119324,1736334633886,-500.0,9.997e-05,2]
[348119325,1736334633896,-500.0,9.997e-05,2]
[348119326,1736334633906,-2199.94,9.997e-05,2]
[348119327,1736334633916,-500.0,9.997e-05,2]
[348119328,1736334633926,-518.48,9.997e-05,2]
[348119329,1736334633937,-1098.0,9.997e-05,2]
[348119330,1736334633947,-767.12,9.997e-05,2]
[348119331,1736334633956,-999.98,9.997e-05,2]
[348119332,1736334633967,-1334.09,9.997e-05,2]
[348119333,1736334633977,-1000.0,9.997e-05,2]
[348119334,1736334633986,-561.04,9.997e-05,2]
[348119335,1736334633997,-500.0,9.997e-05,2]
[348119336,1736334634007,-1955.3666791,9.997e-05,2]
[348119337,1736334634019,-2009.58,9.997e-05,2]
[348119338,1736334634031,-1400.84,9.997e-05,2]
[348119339,1736334634041,-500.0,9.997e-05,2]
[348119340,1736334634050,-565.28,9.997e-05,2]
[348119341,1736334634059,-1404.26,9.997e-05,2]
[348119342,1736334634069,-1005.9,9.997e-05,2]
[348119343,1736334634078,-624.88,9.997e-05,2]
[348119344,1736334634088,-1370.13,9.997e-05,2]
[348119345,1736334634098,-515.51,9.997e-05,2]
[348119346,1736334634109,-441.342302,9.997e-05,2]
[348119347,1736334634118,-1231.58,9.997e-05,2]
[348119348,1736334634128,-667.45,9.997e-05,2]
[348119349,1736334634138,-500.0,9.997e-05,2]
[348119350,1736334634147,-916.04,9.997e-05,2]
[348119351,1736334634157,-500.0,9.997e-05,2]
[348119352,1736334634167,-1093.39,9.997e-05,2]
[348119353,1736334634177,-500.0,9.997e-05,2]
[348119354,1736334634186,-1379.4,9.997e-05,2]
[348119355,1736334634195,-927.6,9.997e-05,2]
[348119356,1736334634205,-617.84,9.997e-05,2]
[348119357,1736334634214,-360.53467264,9.997e-05,2]
[348119358,1736334634224,-611.95,9.997e-05,2]
[348119359,1736334634233,-500.0,9.997e-05,2]
[348119360,1736334634242,-910.7,9.997e-05,2]
[348119361,1736334634251,-500.0,9.997e-05,2]
[348119362,1736334634261,-1153.47,9.997e-05,2]
[348119363,1736334634270,-681.31,9.997e-05,2]
[348119364,1736334634280,-500.0,9.997e-05,2]
[348119365,1736334634290,-500.0,9.997e-05,2]
[348119366,1736334634299,-1282.57,9.997e-05,2]
[348119367,1736334634309,-3622.91,9.997e-05,2]
[348119368,1736334634318,-500.0,9.997e-05,2]
[348119369,1736334634328,-500.0,9.998e-05,2]
[348119370,1736334634338,-500.0,9.998e-05,2]
[348119371,1736334634348,-500.0,9.998e-05,2]
[348119372,1736334634358,-500.0,9.998e-05,2]
[348119373,1736334634367,-81029.15376251,9.998e-05,2]
[348119374,1736334634377,-195.59,9.998e-05,2]
[348119375,1736334634387,-500.0,9.998e-05,2]
[348119376,1736334634396,-500.0,9.998e-05,2]
[348119377,1736334634406,-500.0,9.998e-05,2]
[348119378,1736334634417,-500.0,9.998e-05,2]
[348119379,1736334634426,-500.0,9.998e-05,2]
[348119380,1736334634436,-500.0,9.998e-05,2]
[348119381,1736334634446,-550.67504836,9.998e-05,2]
[348119382,1736334634456,-500.0,9.998e-05,2]
[348119383,1736334634466,-300.93127022,9.998e-05,2]
[348119384,1736334634475,-628.47551181,9.998e-05,2]
[348119385,1736334634485,-500.0,9.998e-05,2]
[348119386,1736334634494,-500.0,9.998e-05,2]
[348119387,1736334634504,-500.0,9.998e-05,2]
[348119388,1736334634513,-500.0,9.998e-05,2]
[348119389,1736334634522,-500.0,9.998e-05,2]
[348119390,1736334634533,-500.0,9.998e-05,2]
[348119391,1736334634542,-500.0,9.998e-05,2]
[348119392,1736334634551,-500.0,9.998e-05,2]
[348119393,1736334634561,-500.0,9.998e-05,2]
[348119394,1736334634571,-500.0,9.998e-05,2]
[348119395,1736334634580,-500.0,9.998e-05,2]
[348119396,1736334634590,-500.0,9.998e-05,2]
[348119397,1736334634599,-500.0,9.998e-05,2]
[348119398,1736334634608,-200.96309827,9.998e-05,2]
[348119399,1736334634617,-500.0,9.998e-05,2]
[348119400,1736334634626,-500.0,9.998e-05,2]
[348119401,1736334634635,-500.0,9.998e-05,2]
[348119402,1736334634644,-500.0,9.998e-05,2]
[348119403,1736334634654,-500.0,9.998e-05,2]
[348119404,1736334634665,-500.0,9.998e-05,2]
[348119405,1736334634674,-500.0,9.998e-05,2]
[348119406,1736334634683,-500.0,9.998e-05,2]
[348119407,1736334634692,-221.70140805,9.998e-05,2]
[348119408,1736334634701,-500.0,9.998e-05,2]
[348119409,1736334634710,-429.4778518,9.998e-05,2]
[348119410,1736334634720,-500.0,9.998e-05,2]
[348119411,1736334634729,-500.0,9.998e-05,2]
[348119412,1736334634738,-293.07896265,9.998e-05,2]
[348119413,1736334634747,-500.0,9.998e-05,2]
[348119414,1736334634756,-500.0,9.998e-05,2]
[348119415,1736334634766,-500.0,9.998e-05,2]
[348119416,1736334634775,-500.0,9.998e-05,2]
[348119417,1736334634784,-500.0,9.998e-05,2]
[348119418,1736334634793,-500.0,9.998e-05,2]
[348119419,1736334634802,-500.0,9.998e-05,2]
[348119420,1736334634811,-500.0,9.998e-05,2]
[348119421,1736334634821,-500.0,9.998e-05,2]
[348119422,1736334634830,-500.0,9.998e-05,2]
[348119423,1736334634839,-500.0,9.998e-05,2]
[348119424,1736334634848,-500.0,9.998e-05,2]
[348119425,1736334634857,-500.0,9.998e-05,2]
[348119426,1736334634867,-500.0,9.998e-05,2]
[348119427,1736334634876,-500.0,9.998e-05,2]
[348119428,1736334634886,-262.78317551,9.998e-05,2]
[348119429,1736334634896,-500.0,9.998e-05,2]
[348119430,1736334634905,-500.0,9.998e-05,2]
[348119431,1736334634916,-500.0,9.998e-05,2]
[348119432,1736334634925,-500.0,9.998e-05,2]
[348119433,1736334634934,-500.0,9.998e-05,2]
[348119434,1736334634943,-500.0,9.998e-05,2]
[348119435,1736334634952,-500.0,9.998e-05,2]
[348119436,1736334634961,-500.0,9.998e-05,2]
[348119437,1736334634971,-290.43767616,9.998e-05,2]
[348119438,1736334634980,-500.0,9.998e-05,2]
[348119439,1736334634990,-500.0,9.998e-05,2]
[348119440,1736334634999,-500.0,9.998e-05,2]
[348119441,1736334635010,-500.0,9.998e-05,2]
[348119442,1736334635020,-500.0,9.998e-05,2]
[348119443,1736334635029,-500.0,9.998e-05,2]
[348119444,1736334635038,-500.0,9.998e-05,2]
[348119445,1736334635048,-500.0,9.998e-05,2]
[348119446,1736334635057,-500.53695189,9.998e-05,2]
[348119447,1736334635066,-500.0,9.998e-05,2]
[348119448,1736334635076,-500.0,9.998e-05,2]
[348119449,1736334635087,-500.0,9.998e-05,2]
[348119450,1736334635096,-500.0,9.998e-05,2]
[348119451,1736334635106,-500.0,9.998e-05,2]
[348119452,1736334635115,-500.0,9.998e-05,2]
[348119453,1736334635125,-500.0,9.998e-05,2]
[348119454,1736334635134,-500.0,9.998e-05,2]
[348119455,1736334635143,-500.0,9.998e-05,2]
[348119456,1736334635153,-464.54187545,9.998e-05,2]
[348119457,1736334635163,-500.0,9.998e-05,2]
[348119458,1736334635173,-500.0,9.998e-05,2]
[348119459,1736334635182,-500.0,9.998e-05,2]
[348119460,1736334635191,-500.0,9.998e-05,2]
[348119461,1736334635201,-500.0,9.998e-05,2]
[348119462,1736334635210,-500.0,9.998e-05,2]
[348119463,1736334635219,-309.88,9.998e-05,2]
[348119464,1736334635229,-500.0,9.998e-05,2]
[348119465,1736334635239,-500.0,9.998e-05,2]
[348119466,1736334635248,-500.0,9.998e-05,2]
[348119467,1736334635257,-500.0,9.998e-05,2]
[348119468,1736334635267,-564.90079383,9.998e-05,2]
[348119469,1736334635276,-500.0,9.998e-05,2]
[348119470,1736334635286,-500.0,9.998e-05,2]
[348119471,1736334635296,-2115.06,9.998e-05,2]
[348119472,1736334635305,-500.0,9.998e-05,2]
[348119473,1736334635318,-500.0,9.998e-05,2]
[348119474,1736334635328,-500.0,9.998e-05,2]
[348119475,1736334635338,-500.0,9.998e-05,2]
[348119476,1736334635347,-500.0,9.998e-05,2]
[348119477,1736334635357,-500.0,9.998e-05,2]
[348119478,1736334635366,-2356.94,9.998e-05,2]
[348119479,1736334635376,-500.0,9.998e-05,2]
[348119480,1736334635387,-500.0,9.998e-05,2]
[348119481,1736334635399,-500.0,9.998e-05,2]
[348119482,1736334635410,-500.0,9.998e-05,2]
[348119483,1736334635421,-500.0,9.998e-05,2]
[348119484,1736334635430,-500.0,9.998e-05,2]
[348119485,1736334635439,-500.0,9.998e-05,2]
[348119486,1736334635449,-500.0,9.998e-05,2]
[348119487,1736334635458,-500.0,9.998e-05,2]
[348119488,1736334635469,-500.0,9.998e-05,2]
[348119489,1736334635479,-500.0,9.998e-05,2]
[348119490,1736334635489,-500.0,9.998e-05,2]
[348119491,1736334635499,-500.0,9.998e-05,2]
[348119492,1736334635509,-983.9,9.998e-05,2]
[348119493,1736334635518,-500.0,9.998e-05,2]
[348119494,1736334635527,-500.0,9.998e-05,2]
[348119495,1736334635536,-500.0,9.998e-05,2]
[348119496,1736334635546,-500.0,9.998e-05,2]
[348119497,1736334635555,-500.0,9.998e-05,2]
[348119498,1736334635565,-500.0,9.998e-05,2]
[348119499,1736334635574,-500.0,9.998e-05,2]
[348119500,1736334635583,-500.0,9.998e-05,2]
[348119501,1736334635593,-500.0,9.998e-05,2]
[348119502,1736334635602,-500.0,9.998e-05,2]
[348119503,1736334635612,-500.0,9.998e-05,2]
[348119504,1736334635621,-500.0,9.998e-05,2]
[348119505,1736334635631,-500.0,9.998e-05,2]
[348119506,1736334635640,-500.0,9.998e-05,2]
[348119507,1736334635650,-500.0,9.998e-05,2]
[348119508,1736334635661,-500.0,9.998e-05,2]
[348119509,1736334635672,-500.0,9.998e-05,2]
[348119510,1736334635682,-500.0,9.998e-05,2]
[348119511,1736334635691,-500.0,9.998e-05,2]
[348119512,1736334635701,-500.0,9.998e-05,2]
[348119513,1736334635711,-311.43480326,9.998e-05,2]
[348119514,1736334635720,-500.0,9.998e-05,2]
[348119515,1736334635730,-500.0,9.998e-05,2]
[348119516,1736334635740,-500.0,9.998e-05,2]
[348119517,1736334635750,-621.31,9.998e-05,2]
[348119518,1736334635760,-500.0,9.998e-05,2]
[348119519,1736334635770,-500.0,9.998e-05,2]
[348119520,1736334635780,-500.0,9.998e-05,2]
[348119521,1736334635790,-500.0,9.998e-05,2]
[348119522,1736334635800,-500.0,9.998e-05,2]
[348119523,1736334635810,-500.0,9.998e-05,2]
[348119524,1736334635820,-500.0,9.998e-05,2]
[348119525,1736334635830,-500.0,9.998e-05,2]
[348119526,1736334635840,-500.0,9.998e-05,2]
[348119527,1736334635849,-500.0,9.998e-05,2]
[348119528,1736334635859,-500.0,9.998e-05,2]
[348119529,1736334635869,-500.0,9.998e-05,2]
[348119530,1736334635879,-500.0,9.998e-05,2]
[348119531,1736334635888,-500.0,9.998e-05,2]
[348119532,1736334635898,-500.0,9.998e-05,2]
[348119533,1736334635908,-500.0,9.998e-05,2]
[348119534,1736334635918,-500.0,9.998e-05,2]
[348119535,1736334635928,-500.0,9.998e-05,2]
[348119536,1736334635938,-500.0,9.998e-05,2]
[348119537,1736334635948,-500.0,9.998e-05,2]
[348119538,1736334635958,-503.7760981,9.998e-05,2]
[348119539,1736334635968,-500.0,9.998e-05,2]
[348119540,1736334635978,-500.0,9.998e-05,2]
[348119541,1736334635988,-500.0,9.998e-05,2]
[348119542,1736334635999,-500.0,9.998e-05,2]
[348119543,1736334636009,-500.0,9.998e-05,2]
[348119544,1736334636019,-500.0,9.998e-05,2]
[348119545,1736334636030,-500.0,9.998e-05,2]